Cogmind - Beta 15 @@@ ROGUE MODE // 2025.07.13 @ 01:37:05 Player: Bobm Result: Self-destructed Performance ------------- Evolutions (1) 500 Regions Visited (3) 600 Robots Destroyed (24) 120 Value Destroyed (597) 597 Prototype IDs (0) 0 Alien Tech Used (0) 0 Bonus (50) 50 TOTAL SCORE: 1867 Bonus ------- Follower Combat Kills 50 Cogmind --------- Core Integrity 290/400 Matter 265/300 Energy 250/250 System Corruption 0% Temperature Cool (70) Movement Treading (160) Location -9/Materials Parts ------- > --- POWER (1) -------- Ion Engine > --- PROPULSION (2) --- Light Treads Light Treads > --- UTILITY (3) ------ Small Storage Unit Hardened Light Armor Plating Hardened Light Armor Plating > --- WEAPON (3) ------- Light Assault Rifle Heavy Assault Rifle > --- INVENTORY (8) ---- Light Treads Light Treads Improved Heat Sink Weight Redist. System Shield Generator Light Assault Rifle Grenade Launcher Peak State ------------ > --- POWER ------------ Ion Engine > --- PROPULSION ------- Light Treads Improved Treads > --- UTILITY ---------- Small Storage Unit Hardened Light Armor Plating Hardened Light Armor Plating > --- WEAPON ----------- Light Assault Rifle Light Assault Rifle Heavy Assault Rifle > --- INVENTORY -------- Ion Engine Light Treads Light Treads Improved Heat Sink Weight Redist. System Light Assault Rifle Grenade Launcher [Rating: 14] Favorites ----------- Power Ion Engine Engine Ion Engine Propulsion Improved Treads Treads Improved Treads Utility Hardened Light Armor Plating Storage Small Storage Unit Hackware Hacking Suite Protection Hardened Light Armor Plating Weapon Light Assault Rifle Ballistic Gun Light Assault Rifle Launcher Grenade Launcher Build | -11 -10 -10 -9 ------- Run | Yrd Mat Min Mat Slots Evolved 2 | . . . 2 Power . | . . . . Propulsion . | . . . . Utility 1 | . . . 1 Weapon 1 | . . . 1 Parts Attached 17 | 6 6 . 5 Power 2 | 1 . . 1 Engine 2 | 1 . . 1 Core . | . . . . Reactor . | . . . . Propulsion 5 | 2 2 . 1 Treads 5 | 2 2 . 1 Leg . | . . . . Wheel . | . . . . Hover . | . . . . Flight . | . . . . Utility 4 | 1 2 . 1 Device . | . . . . Storage 1 | 1 . . . Processor . | . . . . Hackware 1 | . 1 . . Protection 2 | . 1 . 1 Artifact . | . . . . Weapon 6 | 2 2 . 2 Energy Gun . | . . . . Energy Cannon . | . . . . Ballistic Gun 5 | 2 1 . 2 Ballistic Cannon . | . . . . Launcher 1 | . 1 . . Special Weapon . | . . . . Impact Weapon . | . . . . Slashing Weapon . | . . . . Piercing Weapon . | . . . . Special Melee Weapon . | . . . . Unidentified Prototypes . | . . . . Parts Lost 6 | . 2 . 4 Power 1 | . . . 1 Propulsion 2 | . 1 . 1 Utility . | . . . . Weapon 3 | . 1 . 2 Highest Loss Streak 2 | . 1 . 2 To Critical Strikes . | . . . . Average Backups 6 | 3 7 7 6 Power . | 1 1 1 . Propulsion 1 | . 1 1 1 Utility 1 | . 2 2 2 Weapon 2 | 1 2 3 2 Tool/Special . | . . . . Unused Backups 8 | . 3 . 5 Power . | . . . . Propulsion 3 | . 2 . 1 Utility 3 | . . . 3 Weapon 2 | . 1 . 1 Tool/Special . | . . . . Average Slot Usage (%) 96 | . 98 100 92 Engine 12 | . 14 14 9 Treads 24 | . 27 28 21 Storage 12 | . 14 14 11 Hackware 1 | . 2 . . Protection 16 | . 10 14 21 Ballistic Gun 28 | . 27 28 28 Peak Build Rating 14 | 6 12 9 14 Average Rating 10 | 3 10 9 12 On Entrance 6 | . 6 9 9 Naked Turns . | . . . . Heaviest Build 25 | 14 19 18 25 Greatest Support 46 | 40 46 43 43 Greatest Overweight (x) 3 | 3 . . . Average Overweight (x) . | . . . . Largest Inventory Capacity 8 | 8 8 8 8 Average Capacity 7 | 7 8 8 8 Most Carried 8 | 6 8 7 8 Average Carried 6 | 3 7 7 6 Final Capacity 8 | 8 8 8 8 Final Carried 7 | 4 7 7 7 Class Distribution -------------------- 74% | Mutant 21% | Tank 4% | Scavenger-Tank Dominant Class ---------------- Mutant | -10/Materials Mutant | -10/Mines Tank | -9/Materials Resources | -11 -10 -10 -9 ----------- Run | Yrd Mat Min Mat Matter Collected 595 | 42 231 . 322 Remotely . | . . . . Salvage Created 709 | . 324 . 385 Parts 52 | . 35 . 17 Haulers Intercepted . | . . . . Recyclers Shooed . | . . . . Parts Field Recycled . | . . . . Retrieved Matter . | . . . . Parts Self-Destructed . | . . . . Prevented . | . . . . Kills | -11 -10 -10 -9 ------- Run | Yrd Mat Min Mat Combat Hostiles Destroyed 22 | . 14 . 8 Melee 1 | . 1 . . Guns 21 | . 13 . 8 Classes Destroyed 5 | . 4 . 1 Worker 1 | . 1 . . Operator 1 | . 1 . . Swarmer 9 | . 9 . . Grunt 11 | . 5 . 6 Sentry 2 | . . . 2 Best Kill Streak 5 | . 5 . 4 Combat Bots Only 5 | . 5 . 4 Max Kills in Single Turn 1 | . 1 . 1 Gunslinging . | . . . . Exploded . | . . . . Melee 1 | . 1 . . Uniques/NPCs Destroyed . | . . . . Combat | -11 -10 -10 -9 -------- Run | Yrd Mat Min Mat Hostile Shots Fired 140 | . 93 . 47 Missed 33 | . 23 . 10 Hits 107 | . 70 . 37 Melee 6 | . . . 6 Projectile 101 | . 70 . 31 Critical Strikes 2 | . . . 2 Damage Taken 1222 | . 617 . 605 Core 217 | . 107 . 110 Absorbed by Shields . | . . . . Core Remaining (%) 78 | 100 . 57 . Volleys Fired 57 | . 32 . 25 Largest 3 | . 2 . 3 Hottest 63 | . 40 . 63 Shots Fired 128 | . 63 . 65 Gun 128 | . 63 . 65 Cannon . | . . . . Launcher . | . . . . Special . | . . . . Kinetic 128 | . 63 . 65 Thermal . | . . . . Explosive . | . . . . Electromagnetic . | . . . . Robot Hit Streak 17 | . 13 . 17 Robot Miss Streak 5 | . 5 . 1 Penetration Max . | . . . . Secondary Targets 8 | . 6 . 2 Max Gunslinging Chain 1 | . 1 . 1 Shots Hit Robots 95 | . 40 . 55 Core Hits 42 | . 20 . 22 Critical Kills 1 | . 1 . . Critical Parts Destroyed . | . . . . Critical Strikes 1 | . 1 . . Destroy 1 | . 1 . . Melee Attacks . | . . . . Impact . | . . . . Slashing . | . . . . Piercing . | . . . . Sneak Attacks . | . . . . Combat Hostiles . | . . . . Follow-up Attacks . | . . . . Damage Inflicted 1064 | . 503 . 561 Guns 1057 | . 496 . 561 Cannons . | . . . . Explosions . | . . . . Melee . | . . . . Ramming 7 | . 7 . . Kinetic 1057 | . 496 . 561 Thermal . | . . . . Explosive . | . . . . Electromagnetic . | . . . . Impact . | . . . . Slashing . | . . . . Piercing . | . . . . Highest Corruption . | . . . . Average Corruption . | . . . . Corruption Purged . | . . . . Corruption Blocked . | . . . . Overload Shots . | . . . . Overflow Damage . | . . . . Projectiles . | . . . . Explosions . | . . . . Melee . | . . . . Knockbacks . | . . . . Impact . | . . . . Kinetic . | . . . . Secondary . | . . . . Self-Inflicted Damage . | . . . . Shots . | . . . . Rammed 4 | . 4 . . Targets Rammed 5 | . 5 . . Kicked . | . . . . Crushed 1 | . 1 . . Highest Temperature 243 | . 33 . 243 Average Temperature 90 | . 18 . 99 Received Heat Transfer 330 | . 90 . 240 Siege Activations . | . . . . Martial Activations . | . . . . Shielding Activations . | . . . . Robots Disrupted . | . . . . Combat Hostiles . | . . . . Robots Corrupted . | . . . . Combat Hostiles . | . . . . Parts Fried . | . . . . Impact Corruptions . | . . . . Robots Melted . | . . . . Combat Hostiles . | . . . . Parts Melted . | . . . . Heat Transferred . | . . . . Parts Sabotaged . | . . . . Parts Stolen . | . . . . Parts Stripped . | . . . . Power Chain Reactions . | . . . . Alert | -11 -10 -10 -9 ------- Run | Yrd Mat Min Mat Maximum Alert Level 1 | . 1 . . Low Security (%) 97 | 100 93 100 100 Level 1 2 | . 6 . . Level 2 . | . . . . Level 3 . | . . . . Level 4 . | . . . . Level 5 . | . . . . High Security . | . . . . Max Security . | . . . . Peak Influence 205 | . 205 69 96 Initial 69 | . . 69 . Average 59 | . 104 37 36 Influence Increases 623 | . 365 . 258 Destroy 0b10 Robot/C 480 | . 280 . 200 Destroy 0b10 Robot/NC 10 | . 10 . . Destroy Leader 110 | . 60 . 50 Allied During Kill 6 | . . . 6 Successful Hack 2 | . . . 2 Lose Combat Pursuer 15 | . 15 . . Influence Decreases 583 | . 186 179 218 Entered New Map 110 | . . 110 . Time Decay 403 | . 166 69 168 Lost Part 50 | . 20 . 30 Lost Ally 20 | . . . 20 Squads Dispatched 4 | . 3 . 1 Investigation 1 | . 1 . . Extermination . | . . . . Reinforcement 3 | . 2 . 1 Assault . | . . . . Garrison . | . . . . Intercept . | . . . . Searches Triggered . | . . . . Construction Impeded . | . . . . Haulers Reinforced . | . . . . Active Scanning Responses . | . . . . Cargo Convoy Interrupts . | . . . . Stealth | -11 -10 -10 -9 --------- Run | Yrd Mat Min Mat Distress Signals 1 | . 1 . . Communications Jammed . | . . . . Distress Signals . | . . . . Times Spotted 31 | . 17 . 14 Peak Tracking Total 6 | . 6 . 4 Tactical Retreats 1 | . 1 . . Traps | -11 -10 -10 -9 ------- Run | Yrd Mat Min Mat Traps Triggered . | . . . . Indirectly . | . . . . Trap Hack Attempts . | . . . . Triggered . | . . . . Disarmed . | . . . . Reprogrammed . | . . . . Reused . | . . . . Traps Extracted . | . . . . Installed . | . . . . Triggered . | . . . . Machines | -11 -10 -10 -9 ---------- Run | Yrd Mat Min Mat Machines Disabled . | . . . . Max in Single Turn . | . . . . Machines Repaired . | . . . . Machines Dismantled . | . . . . Machines Sabotaged . | . . . . Overloaded Fab Kills . | . . . . Hacking | -11 -10 -10 -9 --------- Run | Yrd Mat Min Mat Machines Accessed 5 | . 3 . 2 Terminals 3 | . 2 . 1 Fabricators . | . . . . Repair Stations . | . . . . Recycling Units 1 | . 1 . . Scanalyzers 1 | . . . 1 Garrison Access . | . . . . Total Hacks 10 | . 7 . 3 Successful 6 | . 4 . 2 Failed 4 | . 3 . 1 Catastrophic 1 | . 1 . . Database Lockouts . | . . . . Manual . | . . . . Terminals 6 | . 5 . 1 Fabricators . | . . . . Repair Stations . | . . . . Recycling Units 2 | . 2 . . Scanalyzers 2 | . . . 2 Garrison Access . | . . . . Terminal Hacks 3 | . 3 . . Alert Level 1 | . 1 . . Hauler Manifests 1 | . 1 . . Zone Layout 1 | . 1 . . Fabricator Hacks . | . . . . Repair Station Hacks . | . . . . Recycling Unit Hacks 1 | . 1 . . Report Inventory 1 | . 1 . . Scanalyzer 2 | . . . 2 Insert Component 1 | . . . 1 Analyze 1 | . . . 1 Garrison Access Hacks . | . . . . Unauthorized Hacks . | . . . . Terminals . | . . . . Fabricators . | . . . . Repair Stations . | . . . . Recycling Units . | . . . . Scanalyzers . | . . . . Garrison Access . | . . . . Data Cores Recovered . | . . . . Used . | . . . . Hacking Detections 4 | . 2 . 2 Full Trace Events 1 | . 1 . . Feedback Events . | . . . . Feedback Blocked . | . . . . Robot Schematics Acquired . | . . . . Robots Built . | . . . . Authchips . | . . . . Time . | . . . . Total Robot Build Rating . | . . . . Part Schematics Acquired 1 | . . . 1 Parts Built . | . . . . Authchips . | . . . . Time . | . . . . Total Part Build Rating . | . . . . Parts Repaired . | . . . . Time . | . . . . Parts Recycled . | . . . . Recycled Matter . | . . . . Retrieved Matter . | . . . . Retrieved Components . | . . . . Parts Scanalyzed 1 | . . . 1 Part Schematics Acquired 1 | . . . 1 Parts Damaged . | . . . . Bothacking | -11 -10 -10 -9 ------------ Run | Yrd Mat Min Mat Used RIF Installer . | . . . . Robots Hacked . | . . . . Non-combat . | . . . . Combat . | . . . . Robot Hacks Applied . | . . . . Relay Couplers Released . | . . . . Fabnet Peak Effective % . | . . . . Robots Rewired . | . . . . Allies Hacked . | . . . . Hacks Repelled . | . . . . Allies | -11 -10 -10 -9 -------- Run | Yrd Mat Min Mat Total Allies 2 | . . 2 . Largest Group 2 | . . 2 2 Highest-Rated Group 45 | . . 45 45 Highest-Rated Ally 31 | . . 31 31 Total Orders . | . . . . Ally Attacks 11 | . . . 11 Total Damage 169 | . . . 169 Kills 2 | . . . 2 Allies Corrupted . | . . . . Allies Melted . | . . . . Intel | -11 -10 -10 -9 ------- Run | Yrd Mat Min Mat Active Infowar (turns) . | . . . . Robot Analysis Total . | . . . . Derelict Logs Recovered . | . . . . Drone Launches . | . . . . Drone Recoveries . | . . . . Exploration | -11 -10 -10 -9 ------------- Run | Yrd Mat Min Mat Turns Passed 1161 | 73 434 143 511 Spaces Moved 591 | 47 185 90 269 Core 22 | 22 . . . Treads 569 | 25 185 90 269 Legs . | . . . . Wheels . | . . . . Hover . | . . . . Flight . | . . . . Fastest Speed 50 | 50 160 160 160 Average Speed 157 | 124 160 160 160 Slowest Speed 200 | 200 160 160 160 Overloaded Moves . | . . . . Propulsion Burnouts . | . . . . Robots Hopped . | . . . . Potential Cave-ins . | . . . . Cave-ins Triggered . | . . . . Exploration Rate (%) 20 | 5 24 33 18 Regions Visited 3 Branch Regions 1 Pre-discovered Areas . | . . . . Known Exits Taken . | . . . . Unknown Exits Taken 3 | 1 1 1 . Scrap Searched . | . . . . Spaces Dug . | . . . . Terrain Destroyed . | . . . . Melee . | . . . . Projectile . | . . . . AOE . | . . . . Terrain Rammed . | . . . . Walls Destroyed . | . . . . Machines Disabled . | . . . . Actions | -11 -10 -10 -9 --------- Run | Yrd Mat Min Mat Total 717 | 62 262 89 304 Wait 15 | . 15 . . Move 588 | 46 184 89 269 Hop . | . . . . Pick Up 25 | 10 10 . 5 Fast Attach . | . . . . Attach 19 | 6 8 . 5 Detach 5 | . 5 . . Swap . | . . . . Drop 3 | . 3 . . Fire 57 | . 32 . 25 Melee . | . . . . Ram . | . . . . Kick . | . . . . Crush 5 | . 5 . . Escape Stasis . | . . . . Rewire . | . . . . Trap . | . . . . Miscellaneous . | . . . . Route ------- -11/Scrapyard -10/Materials -10/Mines -9/Materials (discovered 1 exit: [*Min]) History --------- Turn | Location | Event 9 | -11/Scrapyard | Discovered new exit (range 16) 74 | -11/Scrapyard | Entered Materials 308 | -10/Materials | Build established: Mutant 381 | -10/Materials | Discovered new exit (range 16) 508 | -10/Materials | Entered Mines 520 | -10/Mines | Met a Derelict bent on vengeance 611 | -10/Mines | Discovered new exit (range 11) 651 | -10/Mines | Entered Materials 651 | -9/Materials | Accompanied by 2 allies 651 | -9/Materials | Evolved 2 slots: Utility x1, Weapon x1 656 | -9/Materials | Led the pair of lost Derelicts to an unsafe place 730 | -9/Materials | Discovered new exit (range 11) 1162 | -9/Materials | Self-destructed Last Messages --------------- Acquired Lgt. Treads. Acquired Hvy. Assault Rifle. Acquired 10 matter. Acquired Shield Generator. Connecting with Terminal... Ion Engine destroyed. Critical hit (Burn: +37). Y-45 Defender destroyed. Imp. Treads destroyed. G-47 Trooper destroyed. Switching to secondary target: G-34 Mercenary. G-34 Mercenary destroyed. Switching to secondary target: G-34 Mercenary. G-34 Mercenary destroyed. Acquired 40 matter. K-01 Serf collects debris. Acquired Lgt. Treads. K-01 Serf collects debris. Lgt. Assault Rifle destroyed. G-34 Mercenary destroyed. Map ----- +----------------------------------------------------+ | ?????????????????????????????????????????????????? | | ?????????????????????????????????????????????????? | | ?????????????????????????????????????????????????? | | ?????????????????????????????????????????????????? | | ?????????????????????????????????????????????????? | | ?????????????????????????????????????????????????? | | ## ##??????????????????????????????????????????? | | % #??????????????????????????????????????????? | | # #??????????????????????????????????????????? | | ????? #??????????????????????????????????????????? | | #????????????????????????????????????????????????? | | #????????????????????????????????????????????????? | | #????????????????????????????????????????????????? | | #????????????????????????????????????????????????? | | #???????????????????????###+###??????????????????? | | #???????????????????????? ??????????????????? | | #???????????????????????? ???????????????????? | | #???????????????????????? ???????????????????? | | #????????????????????????# #???????????????????? | | #####????????????????????# #???????????????????? | | #????????????????????# #???????????????????? | | " #?????????????######## w #???????????????????? | | ""#?????????????# !// # ###########?????????? | | ""#?????????????# !// # # #?????????? | | """#?????????????# /// #l%g# #?????????? | | "" #????????????## @ + = #?????????? | | """#????????????#%![ # # #?????????? | | """#????????????##* # ###########?????????? | | """#?????????######+##### ######??????????????? | | " #?????????#T"## =%% ?????????????? | | ########### "## %== ?????????????? | | + *= ?????????????? | | ##################+######+#####??????????????? | | #####????????????????????????????????????????????? | | ?????????????????????????????????????????????????? | | ?????????????????????????????????????????????????? | | ?????????????????????????????????????????????????? | | ?????????????????????????????????????????????????? | | ?????????????????????????????????????????????????? | | ?????????????????????????????????????????????????? | | ?????????????????????????????????????????????????? | | ?????????????????????????????????????????????????? | | | | | | | | | | | | | | | | | +----------------------------------------------------+ Best States ------------- Heat Dissipation 28 Energy Generation 10 Energy Capacity 250 Matter Stores 300 Matter Capacity 300 Sight Range 16 Terrain Scan Density 10 Armor Coverage 300 Evasion (%) 40 Recoil Reduction 2 Offensive Hacking 10 Item Schematics ----------------- Imp. Heat Sink | -9/Materials | Scanalyzed Robot Schematics ------------------ None Fabricated ------------ Nothing Repaired ---------- Nothing Alien Tech Used ----------------- None Achievements -------------- Oops Challenges ------------ None Game ------ Seed JammingServoNullifier Manual? 0 Play Time 00:13:24 Cumulative 2.1 hours Start 2025.07.07 @ 12:33:08 End 2025.07.13 @ 01:37:05 Sessions 2 Manual Loads 0 Difficulty Rogue Special Mode None Game No. 7 Rogue 7 Adventurer 0 Explorer 0 Win Type - Total 0 Types 0/0/0/0/0/0/0/0/0/0 Lore% 1 Gallery% 5 Achievement% 6 Wizard Run 0 Options --------- Layout 1 ASCII 0 Keyboard 0 Movement Arrows Keybinds 0 Fullscreen 0 Font 28/SmallcapsGlow Map View 50x35 Zoom Use 0% Tactical HUD 0 Map Filters NONE Filters NONE Steam 1 RUN: cf355dbf-8144-4e27-8770-138047d6ee7b